fUST/lending_fUST_20251220
["ID","MTS","AMOUNT","RATE_DAILY","PERIOD"]
[399270389,1766224595807,-5000.0,0.00053,120]
[399270390,1766224595840,-206.15429417,0.00053,120]
[399270391,1766224595871,-649.0,0.00053,120]
[399270392,1766224595902,-500.0,0.00053,120]
[399270393,1766224595935,-500.0,0.00053,120]
[399270394,1766224595968,-151.0,0.00053,120]
[399270395,1766224596001,-164.0,0.00053,120]
[399270396,1766224596034,-153.0,0.00053151,30]
[399270397,1766224596068,-153.0,0.00053151,30]
[399270398,1766224596103,-153.0,0.00053151,30]
[399270399,1766224596136,-153.0,0.00053151,30]
[399270400,1766224596169,-153.0,0.00053151,30]
[399270401,1766224596203,-153.0,0.00053151,30]
[399270402,1766224596238,-153.0,0.00053151,30]
[399270403,1766224596272,-153.0,0.00053151,30]
[399270404,1766224596306,-153.0,0.00053151,30]
[399270405,1766224596338,-164.9277546,0.00053151,30]
[399270406,1766224596370,-192.8149694,0.00053425,30]
[399270407,1766224596401,-598.3641664,0.00053425,30]
[399270408,1766224596435,-192.8149694,0.00053425,30]
[399270409,1766224596467,-192.8149694,0.00053425,30]
[399270410,1766224596499,-598.3641664,0.00053425,30]
[399270411,1766224596531,-192.8149694,0.00053425,30]
[399270412,1766224596563,-598.3641664,0.00053425,30]
[399270413,1766224596596,-192.8149694,0.00053425,30]
[399270414,1766224596628,-192.8149694,0.00053425,30]
[399270415,1766224596663,-192.8149694,0.00053425,30]
[399270416,1766224596695,-192.8149694,0.00053425,30]
[399270417,1766224596728,-192.8149694,0.00053425,30]
[399270418,1766224596760,-192.8149694,0.00053425,30]
[399270419,1766224596794,-192.8149694,0.00053425,30]
[399270420,1766224596826,-192.8149694,0.00053425,30]
[399270421,1766224596858,-192.8149694,0.00053425,30]
[399270422,1766224596890,-192.8149694,0.00053425,30]
[399270423,1766224596924,-390.8914618,0.00053425,30]
[399270424,1766224596958,-586.90177,0.000535,120]
[399270425,1766224596991,-880.291269,0.000535,120]
[399270426,1766224597024,-467.85584,0.000535,120]
[399270427,1766224597214,-349.43741,0.000535,120]
[399270428,1766224597252,-800.0,0.000539,120]
[399270429,1766224597290,-151.0,0.000539,120]
[399270430,1766224597323,-153.0,0.00053918,30]
[399270431,1766224597356,-153.0,0.00053918,30]
[399270432,1766224597390,-200.0,0.00054,120]
[399270433,1766224597423,-688.46581495,0.00054,120]
[399270434,1766224597456,-500.0,0.00054,120]
[399270435,1766224597490,-192.8149694,0.00054247,30]
[399270436,1766224597523,-192.8149694,0.00054247,30]
[399270437,1766224597555,-192.8149694,0.00054247,30]
[399270438,1766224597586,-192.8149694,0.00054247,30]
[399270439,1766224597618,-192.8149694,0.00054247,30]
[399270440,1766224597649,-192.8149694,0.00054247,30]
[399270441,1766224597681,-192.8149694,0.00054247,30]
[399270442,1766224597712,-192.8149694,0.00054247,30]
[399270443,1766224597744,-192.8149694,0.00054247,30]
[399270444,1766224597774,-192.8149694,0.00054247,30]
[399270445,1766224597805,-153.0,0.00054247,30]
[399270446,1766224597837,-336.4384414,0.00054247,30]
[399270447,1766224597869,-153.0,0.00054247,30]
[399270448,1766224597901,-153.0,0.00054247,30]
[399270449,1766224597932,-153.0,0.00054247,30]
[399270450,1766224597965,-153.0,0.00054247,30]
[399270451,1766224597998,-153.0,0.00054247,30]
[399270452,1766224598029,-153.0,0.00054247,30]
[399270453,1766224598060,-153.0,0.00054247,30]
[399270454,1766224598092,-153.0,0.00054247,30]
[399270455,1766224598124,-153.0,0.00054247,30]
[399270456,1766224598155,-153.0,0.00054247,30]
[399270457,1766224598189,-153.0,0.00054247,30]
[399270458,1766224598223,-153.0,0.00054247,30]
[399270459,1766224598258,-153.0,0.00054247,30]
[399270460,1766224598292,-153.0,0.00054247,30]
[399270461,1766224598326,-598.3641664,0.00054247,30]
[399270462,1766224598359,-1000.0,0.00054443,120]
[399270463,1766224598395,-562.16699802,0.000545,30]
[399270464,1766224598429,-3000.0,0.00054699,120]
[399270465,1766224598464,-165.27026845,0.00054794,60]
[399270466,1766224598501,-161.150269,0.00054794,120]
[399270467,1766224598534,-170.401886,0.00054794,120]
[399270468,1766224598567,-834.680394,0.00054794,120]
[399270469,1766224598600,-500.0,0.00054794,120]
[399270470,1766224598632,-500.0,0.00054794,120]
[399270471,1766224598662,-525.92205933,0.00054794,120]
[399270472,1766224598694,-500.0,0.00054794,120]
[399270473,1766224598728,-500.0,0.00054794,120]
[399270474,1766224598760,-500.0,0.00054794,120]
[399270475,1766224598803,-500.0,0.00054794,120]
[399270476,1766224598836,-1761.74,0.00054794,120]
[399270477,1766224598870,-500.0,0.00054794,120]
[399270478,1766224598904,-500.0,0.00054794,120]
[399270479,1766224598937,-500.0,0.00054794,120]
[399270480,1766224598972,-657.47,0.00054794,30]
[399270481,1766224599006,-500.0,0.00054794,120]
[399270482,1766224599043,-742.91,0.00054794,120]
[399270483,1766224599076,-500.0,0.00054794,120]
[399270484,1766224599110,-1067.36,0.00054794,120]
[399270485,1766224599142,-889.21,0.00054794,120]
[399270486,1766224599177,-1566.58,0.00054794,120]
[399270487,1766224599211,-1605.97,0.00054794,120]
[399270488,1766224599245,-500.0,0.00054794,120]
[399270489,1766224599278,-500.0,0.00054794,120]
[399270490,1766224599311,-987.62,0.00054794,120]
[399270491,1766224599343,-500.0,0.00054794,120]
[399270492,1766224599375,-500.0,0.00054794,120]
[399270493,1766224599408,-500.0,0.00054794,120]
[399270494,1766224599440,-500.0,0.00054794,120]
[399270495,1766224599473,-649.18938041,0.00054794,120]
[399270496,1766224599507,-1061.97,0.00054794,120]
[399270497,1766224599538,-538.95,0.00054794,120]
[399270498,1766224599569,-833.42,0.00054794,120]
[399270499,1766224599600,-500.0,0.00054794,120]
[399270500,1766224599631,-500.0,0.00054794,120]
[399270501,1766224599662,-522.17,0.00054794,120]
[399270502,1766224599693,-500.0,0.00054794,120]
[399270503,1766224599725,-500.0,0.00054794,120]
[399270504,1766224599756,-549.93,0.00054794,120]
[399270505,1766224599786,-1602.39,0.00054794,120]
[399270506,1766224599817,-500.0,0.00054794,120]
[399270507,1766224599848,-946.59,0.00054794,120]
[399270508,1766224599879,-500.0,0.00054794,120]
[399270509,1766224599912,-500.0,0.00054794,120]
[399270510,1766224599948,-500.0,0.00054794,120]
[399270511,1766224599980,-500.0,0.00054794,120]
[399270512,1766224600016,-505.83370948,0.00054794,120]
[399270513,1766224600048,-500.0,0.00054794,120]
[399270514,1766224600082,-500.0,0.00054794,120]
[399270515,1766224600114,-500.0,0.00054794,120]
[399270516,1766224600148,-548.42,0.00054794,120]
[399270517,1766224600180,-1053.54,0.00054794,120]
[399270518,1766224600212,-500.0,0.00054794,120]
[399270519,1766224600245,-500.0,0.00054794,120]
[399270520,1766224600278,-500.0,0.00054794,120]
[399270521,1766224600311,-500.0,0.00054794,120]
[399270522,1766224600344,-500.0,0.00054794,120]
[399270523,1766224600530,-500.0,0.00054794,120]
[399270524,1766224600564,-500.0,0.00054794,120]
[399270525,1766224600596,-500.0,0.00054794,120]
[399270526,1766224600627,-537.43887372,0.00054794,120]
[399270527,1766224600658,-597.95,0.00054794,120]
[399270528,1766224600690,-500.0,0.00054794,120]
[399270529,1766224600722,-1021.01,0.00054794,120]
[399270530,1766224600754,-643.2,0.00054794,120]
[399270531,1766224600784,-504.26295943,0.00054794,120]
[399270532,1766224600815,-500.0,0.00054794,120]
[399270533,1766224600846,-321.79308346,0.00054794,120]
[399270534,1766224600877,-1210.54,0.00054794,120]
[399270535,1766224600908,-809.61,0.00054794,120]
[399270536,1766224600940,-588.63,0.00054794,120]
[399270537,1766224600972,-500.0,0.00054794,120]
[399270538,1766224601006,-500.0,0.00054794,120]
[399270539,1766224601040,-500.0,0.00054794,120]
[399270540,1766224601076,-511.91311246,0.00054794,120]
[399270541,1766224601110,-500.0,0.00054794,120]
[399270542,1766224601145,-500.0,0.00054794,120]
[399270543,1766224601178,-1561.06,0.00054794,120]
[399270544,1766224601212,-500.0,0.00054794,120]
[399270545,1766224601248,-927.03,0.00054794,120]
[399270546,1766224601283,-503.20833638,0.00054794,120]
[399270547,1766224601317,-500.0,0.00054794,120]
[399270548,1766224601352,-502.19245174,0.00054794,120]
[399270549,1766224601384,-500.0,0.00054794,120]
[399270550,1766224601416,-500.0,0.00054794,120]
[399270551,1766224601449,-500.0,0.00054794,120]
[399270552,1766224601481,-500.0,0.00054794,120]
[399270553,1766224601514,-600.64,0.00054794,120]
[399270554,1766224601547,-323.74329606,0.00054794,120]
[399270555,1766224601580,-500.0,0.00054794,120]
[399270556,1766224601613,-559.05,0.00054794,120]
[399270557,1766224601645,-500.0,0.00054794,120]
[399270558,1766224601677,-500.0,0.00054794,120]
[399270559,1766224601708,-500.0,0.00054794,120]
[399270560,1766224601741,-504.85102248,0.00054794,120]
[399270561,1766224601774,-500.0,0.00054794,120]
[399270562,1766224601807,-500.0,0.00054794,120]
[399270563,1766224601838,-578.53,0.00054794,120]
[399270564,1766224601871,-500.0,0.00054794,120]
[399270565,1766224601903,-500.61914114,0.00054794,120]
[399270566,1766224601935,-500.0,0.00054794,120]
[399270567,1766224601966,-500.0,0.00054794,120]
[399270568,1766224601999,-1052.69,0.00054794,120]
[399270569,1766224602030,-500.0,0.00054794,120]
[399270570,1766224602062,-500.0,0.00054794,120]
[399270571,1766224602094,-500.97110937,0.00054794,120]
[399270572,1766224602126,-500.0,0.00054794,120]
[399270573,1766224602159,-500.0,0.00054794,120]
[399270574,1766224602191,-500.0,0.00054794,120]
[399270575,1766224602225,-1322.14,0.00054794,120]
[399270576,1766224602259,-1464.97,0.00054794,120]
[399270577,1766224602292,-761.18,0.00054794,120]
[399270578,1766224602326,-500.0,0.00054794,120]
[399270579,1766224602358,-500.0,0.00054794,120]
[399270580,1766224602390,-500.0,0.00054794,120]
[399270581,1766224602423,-500.0,0.00054794,120]
[399270582,1766224602456,-500.0,0.00054794,120]
[399270583,1766224602489,-500.0,0.00054794,120]
[399270584,1766224602521,-501.40355969,0.00054794,120]
[399270585,1766224602553,-500.0,0.00054794,120]
[399270586,1766224602585,-500.0,0.00054794,120]
[399270587,1766224602617,-500.0,0.00054794,120]
[399270588,1766224602648,-500.0,0.00054794,120]
[399270589,1766224602680,-500.0,0.00054794,120]
[399270590,1766224602711,-500.0,0.00054794,120]
[399270591,1766224602741,-500.0,0.00054794,120]
[399270592,1766224602772,-501.01944502,0.00054794,120]
[399270593,1766224602802,-500.0,0.00054794,120]
[399270594,1766224602835,-500.0,0.00054794,120]
[399270595,1766224602868,-500.0,0.00054794,120]
[399270596,1766224602901,-837.11,0.00054794,120]
[399270597,1766224602934,-567.66,0.00054794,120]
[399270598,1766224602968,-500.0,0.00054794,120]
[399270599,1766224602999,-500.0,0.00054794,120]
[399270600,1766224603032,-1804.46,0.00054794,120]
[399270601,1766224603063,-500.0,0.00054794,120]
[399270602,1766224603094,-500.0,0.00054794,120]
[399270603,1766224603126,-1082.04,0.00054794,120]
[399270604,1766224603158,-500.0,0.00054794,120]
[399270605,1766224603192,-1647.56,0.00054794,120]
[399270606,1766224603226,-500.0,0.00054794,120]
[399270607,1766224603261,-500.0,0.00054794,120]
[399270608,1766224603294,-500.0,0.00054794,120]
[399270609,1766224603326,-500.0,0.00054794,120]
[399270610,1766224603359,-500.0,0.00054794,120]
[399270611,1766224603391,-635.03,0.00054794,120]
[399270612,1766224603423,-441.40661252,0.00054794,120]
[399270613,1766224603454,-500.0,0.00054794,120]
[399270614,1766224603486,-301.94128209,0.00054794,120]
[399270615,1766224603521,-500.0,0.00054794,120]
[399270616,1766224603555,-500.0,0.00054794,120]
[399270617,1766224603587,-500.0,0.00054794,120]
[399270618,1766224603618,-500.0,0.00054794,120]
[399270619,1766224603651,-500.0,0.00054794,120]
[399270620,1766224603837,-968.29,0.00054794,120]
[399270621,1766224603870,-500.0,0.00054794,120]
[399270622,1766224603902,-500.0,0.00054794,120]
[399270623,1766224603934,-500.0,0.00054794,120]
[399270624,1766224603968,-500.0,0.00054794,120]
[399270625,1766224604006,-877.02,0.00054794,120]
[399270626,1766224604040,-801.01,0.00054794,120]
[399270627,1766224604075,-501.9714085,0.00054794,120]
[399270628,1766224604111,-327.8527471,0.00054794,120]
[399270629,1766224604145,-500.0,0.00054794,120]
[399270630,1766224604176,-500.0,0.00054794,120]
[399270631,1766224604209,-500.0,0.00054794,120]
[399270632,1766224604242,-500.0,0.00054794,120]
[399270633,1766224604274,-500.0,0.00054794,120]
[399270634,1766224604306,-758.02,0.00054794,120]
[399270635,1766224604338,-500.0,0.00054794,100]
[399270636,1766224604369,-500.0,0.00054794,120]
[399270637,1766224604400,-500.0,0.00054794,120]
[399270638,1766224604437,-968.14,0.00054794,120]
[399270639,1766224604471,-500.0,0.00054794,120]
[399270640,1766224604504,-500.0,0.00054794,120]
[399270641,1766224604537,-500.0,0.00054794,120]
[399270642,1766224604569,-505.28670489,0.00054794,120]
[399270643,1766224604602,-500.0,0.00054794,120]
[399270644,1766224604633,-500.0,0.00054794,120]
[399270645,1766224604664,-500.0,0.00054794,120]
[399270646,1766224604697,-501.41590223,0.00054794,120]
[399270647,1766224604728,-848.49,0.00054794,120]
[399270648,1766224604758,-1171.12,0.00054794,120]
[399270649,1766224604792,-640.15894816,0.00054794,120]
[399270650,1766224604826,-500.0,0.00054794,120]
[399270651,1766224604858,-513.76,0.00054794,120]
[399270652,1766224604890,-1360.5,0.00054794,120]
[399270653,1766224604926,-1006.91,0.00054794,120]
[399270654,1766224604957,-1796.95,0.00054794,120]
[399270655,1766224604989,-1019.35,0.00054794,120]
[399270656,1766224605021,-500.0,0.00054794,120]
[399270657,1766224605052,-500.0,0.00054794,120]
[399270658,1766224605084,-501.10067378,0.00054794,120]
[399270659,1766224605115,-500.0,0.00054794,120]
[399270660,1766224605148,-501.67209498,0.00054794,120]
[399270661,1766224605182,-500.0,0.00054794,120]
[399270662,1766224605216,-500.0,0.00054794,120]
[399270663,1766224605249,-928.79,0.00054794,120]
[399270664,1766224605282,-500.0,0.00054794,120]
[399270665,1766224605314,-500.0,0.00054794,120]
[399270666,1766224605349,-304.51083623,0.00054794,120]
[399270667,1766224605381,-500.0,0.00054794,120]
[399270668,1766224605412,-500.0,0.00054794,120]
[399270669,1766224605450,-500.0,0.00054794,120]
[399270670,1766224605487,-604.26,0.00054794,120]
[399270671,1766224605521,-1483.93,0.00054794,120]
[399270672,1766224605553,-501.44493331,0.00054794,120]
[399270673,1766224605585,-539.47,0.00054794,120]
[399270674,1766224605616,-500.0,0.00054794,120]
[399270675,1766224605648,-730.08,0.00054794,120]
[399270676,1766224605681,-818.72,0.00054794,120]
[399270677,1766224605713,-500.0,0.00054794,120]
[399270678,1766224605745,-500.0,0.00054794,120]
[399270679,1766224605776,-500.0,0.00054794,120]
[399270680,1766224605808,-500.0,0.00054794,120]
[399270681,1766224605838,-500.0,0.00054794,120]
[399270682,1766224605869,-1368.29,0.00054794,120]
[399270683,1766224605902,-500.0,0.00054794,120]
[399270684,1766224605937,-500.0,0.00054794,120]
[399270685,1766224605969,-773.04,0.00054794,120]
[399270686,1766224606001,-500.0,0.00054794,120]
[399270687,1766224606033,-2114.2,0.00054794,120]
[399270688,1766224606065,-500.0,0.00054794,120]
[399270689,1766224606098,-500.0,0.00054794,120]
[399270690,1766224606131,-500.0,0.00054794,120]
[399270691,1766224606164,-504.34,0.00054794,120]
[399270692,1766224606197,-551.95,0.00054794,120]
[399270693,1766224606232,-500.0,0.00054794,120]
[399270694,1766224606266,-500.0,0.00054794,120]
[399270695,1766224606299,-838.06,0.00054794,120]
[399270696,1766224606332,-242.86394009,0.00054794,120]
[399270697,1766224606364,-524.43,0.00054794,120]
[399270698,1766224606396,-500.0,0.00054794,120]
[399270699,1766224606430,-657.25,0.00054794,120]
[399270700,1766224606464,-859.92,0.00054794,120]
[399270701,1766224606497,-750.62,0.00054794,120]
[399270702,1766224606530,-500.0,0.00054794,120]
[399270703,1766224606564,-500.0,0.00054794,120]
[399270704,1766224606596,-502.27812758,0.00054794,120]
[399270705,1766224606628,-500.0,0.00054794,120]
[399270706,1766224606660,-500.0,0.00054794,120]
[399270707,1766224606693,-1260.92,0.00054794,120]
[399270708,1766224606726,-500.0,0.00054794,120]
[399270709,1766224606759,-500.0,0.00054794,120]
[399270710,1766224606792,-500.0,0.00054794,120]
[399270711,1766224606824,-500.64816674,0.00054794,120]
[399270712,1766224606858,-996.88,0.00054794,120]
[399270713,1766224606893,-500.84535627,0.00054794,120]
[399270714,1766224606930,-931.8,0.00054794,120]
[399270715,1766224606962,-649.34,0.00054794,120]
[399270716,1766224607157,-500.0,0.00054794,120]
[399270717,1766224607197,-500.0,0.00054794,120]
[399270718,1766224607234,-500.0,0.00054794,120]
[399270719,1766224607283,-500.0,0.00054794,120]
[399270720,1766224607317,-1291.11,0.00054794,120]
[399270721,1766224607351,-751.54,0.00054794,120]
[399270722,1766224607384,-918.62,0.00054794,120]
[399270723,1766224607419,-500.70843004,0.00054794,120]
[399270724,1766224607451,-500.0,0.00054794,120]
[399270725,1766224607483,-707.52,0.00054794,120]
[399270726,1766224607516,-500.0,0.00054794,120]
[399270727,1766224607547,-939.92,0.00054794,120]
[399270728,1766224607579,-1461.8,0.00054794,120]
[399270729,1766224607611,-500.0,0.00054794,120]
[399270730,1766224607642,-500.0,0.00054794,120]
[399270731,1766224607674,-500.0,0.00054794,120]
[399270732,1766224607704,-500.0,0.00054794,120]
[399270733,1766224607736,-760.03,0.00054794,120]
[399270734,1766224607767,-500.0,0.00054794,120]
[399270735,1766224607798,-500.0,0.00054794,30]
[399270736,1766224607829,-372.96071299,0.00054794,120]
[399270737,1766224607860,-500.0,0.00054794,120]
[399270738,1766224607892,-1594.19,0.00054794,120]
[399270739,1766224607929,-500.0,0.00054794,120]
[399270740,1766224607964,-500.0,0.00054794,120]
[399270741,1766224608001,-501.32,0.00054794,120]
[399270742,1766224608036,-500.0,0.00054794,120]
[399270743,1766224608067,-500.0,0.00054794,120]
[399270744,1766224608099,-861.07,0.00054794,120]
[399270745,1766224608130,-500.0,0.00054794,120]
[399270746,1766224608403,-500.0,0.00054794,120]
[399270747,1766224608444,-500.0,0.00054794,120]
[399270748,1766224608479,-500.0,0.00054794,120]
[399270749,1766224608515,-500.0,0.00054794,120]
[399270750,1766224608547,-1033.86,0.00054794,120]
[399270751,1766224608577,-506.57231652,0.00054794,120]
[399270752,1766224608609,-1584.41,0.00054794,120]
[399270753,1766224608645,-500.0,0.00054794,120]
[399270754,1766224608679,-501.04710572,0.00054794,120]
[399270755,1766224608710,-500.0,0.00054794,120]
[399270756,1766224608741,-500.0,0.00054794,120]
[399270757,1766224608773,-500.0,0.00054794,120]
[399270758,1766224608804,-500.0,0.00054794,120]
[399270759,1766224608836,-500.0,0.00054794,120]
[399270760,1766224608868,-500.0,0.00054794,120]
[399270761,1766224608900,-500.0,0.00054794,120]
[399270762,1766224608932,-1425.07,0.00054794,120]
[399270763,1766224608963,-1127.23,0.00054794,120]
[399270764,1766224608994,-500.0,0.00054794,60]
[399270765,1766224609025,-500.0,0.00054794,120]
[399270766,1766224609057,-809.01,0.00054794,120]
[399270767,1766224609091,-1007.92,0.00054794,120]
[399270768,1766224609124,-500.0,0.00054794,120]
[399270769,1766224609156,-500.0,0.00054794,120]
[399270770,1766224609198,-500.0,0.00054794,120]
[399270771,1766224609238,-500.0,0.00054794,120]
[399270772,1766224609275,-500.0,0.00054794,120]
[399270773,1766224609310,-500.0,0.00054794,120]
[399270774,1766224609344,-748.48,0.00054794,120]
[399270775,1766224609377,-500.0,0.00054794,120]
[399270776,1766224609413,-995.45,0.00054794,120]
[399270777,1766224609446,-500.63563851,0.00054794,120]
[399270778,1766224609481,-500.0,0.00054794,120]
[399270779,1766224609515,-500.0,0.00054794,120]
[399270780,1766224609548,-500.0,0.00054794,120]
[399270781,1766224609583,-500.0,0.00054794,120]
[399270782,1766224609619,-1002.0,0.00054794,120]
[399270783,1766224609653,-500.0,0.00054794,120]
[399270784,1766224609685,-500.0,0.00054794,120]
[399270785,1766224609717,-500.84762987,0.00054794,120]
[399270786,1766224609750,-566.55123381,0.00054794,120]
[399270787,1766224609782,-500.0,0.00054794,120]
[399270788,1766224609813,-500.0,0.00054794,120]
[399270789,1766224609847,-500.0,0.00054794,120]
[399270790,1766224609879,-500.62205579,0.00054794,120]
[399270791,1766224609911,-819.57,0.00054794,120]
[399270792,1766224609952,-500.0,0.00054794,120]
[399270793,1766224609986,-959.28,0.00054794,120]
[399270794,1766224610022,-500.0,0.00054794,120]
[399270795,1766224610056,-500.0,0.00054794,120]
[399270796,1766224610091,-913.03,0.00054794,120]
[399270797,1766224610124,-2015.0,0.00054794,120]
[399270798,1766224610158,-500.0,0.00054794,120]
[399270799,1766224610193,-560.01,0.00054794,120]
[399270800,1766224610228,-782.12,0.00054794,120]
[399270801,1766224610263,-500.0,0.00054794,120]
[399270802,1766224610299,-500.0,0.00054794,120]
[399270803,1766224610331,-500.0,0.00054794,120]
[399270804,1766224610366,-500.0,0.00054794,120]
[399270805,1766224610399,-501.12079059,0.00054794,120]
[399270806,1766224610434,-500.0,0.00054794,120]
[399270807,1766224610467,-500.0,0.00054794,120]
[399270808,1766224610502,-1627.66,0.00054794,120]
[399270809,1766224610534,-728.31,0.00054794,120]
[399270810,1766224610566,-542.41,0.00054794,120]
[399270811,1766224610598,-834.71,0.00054794,120]
[399270812,1766224610631,-501.30849169,0.00054794,120]
[399270813,1766224610884,-500.0,0.00054794,120]
[399270814,1766224610918,-500.0,0.00054794,120]
[399270815,1766224610953,-514.78385906,0.00054794,120]
[399270816,1766224610986,-913.64,0.00054794,120]
[399270817,1766224611021,-1238.33,0.00054794,120]
[399270818,1766224611055,-601.71,0.00054794,120]
[399270819,1766224611092,-500.0,0.00054794,120]
[399270820,1766224611124,-500.0,0.00054794,120]
[399270821,1766224611159,-500.0,0.00054794,120]
[399270822,1766224611193,-502.52030566,0.00054794,120]
[399270823,1766224611228,-500.0,0.00054794,120]
[399270824,1766224611263,-500.0,0.00054794,120]
[399270825,1766224611295,-501.90999035,0.00054794,120]
[399270826,1766224611327,-925.52,0.00054794,120]
[399270827,1766224611361,-1324.59,0.00054794,120]
[399270828,1766224611393,-1496.52,0.00054794,120]
[399270829,1766224611426,-500.68143679,0.00054794,120]
[399270830,1766224611458,-977.5,0.00054794,120]
[399270831,1766224611492,-500.0,0.00054794,120]
[399270832,1766224611524,-484.35958887,0.00054794,120]
[399270833,1766224611556,-738.89,0.00054794,120]
[399270834,1766224611591,-598.1,0.00054794,120]
[399270835,1766224611629,-500.0,0.00054794,120]
[399270836,1766224611663,-500.0,0.00054794,120]
[399270837,1766224611695,-581.34,0.00054794,120]
[399270838,1766224611726,-501.19364998,0.00054794,120]
[399270839,1766224611757,-500.0,0.00054794,120]
[399270840,1766224611790,-500.0,0.00054794,120]
[399270841,1766224611828,-500.0,0.00054794,120]
[399270842,1766224611861,-500.0,0.00054794,120]
[399270843,1766224611893,-500.0,0.00054794,120]
[399270844,1766224611926,-500.0,0.00054794,120]
[399270845,1766224611971,-500.0,0.00054794,120]
[399270846,1766224612010,-500.0,0.00054794,120]
[399270847,1766224612046,-500.0,0.00054794,120]
[399270848,1766224612082,-1599.07,0.00054794,120]
[399270849,1766224612116,-500.0,0.00054794,120]
[399270850,1766224612150,-636.57,0.00054794,120]
[399270851,1766224612187,-503.07816172,0.00054794,120]
[399270852,1766224612226,-500.0,0.00054794,120]
[399270853,1766224612264,-500.0,0.00054794,120]
[399270854,1766224612303,-648.14,0.00054794,120]
[399270855,1766224612342,-500.0,0.00054794,120]
[399270856,1766224612379,-500.0,0.00054794,120]
[399270857,1766224612415,-500.0,0.00054794,120]
[399270858,1766224612452,-2022.0,0.00054794,120]
[399270859,1766224612489,-501.80682506,0.00054794,120]
[399270860,1766224612525,-500.0,0.00054794,120]
[399270861,1766224612562,-502.66,0.00054794,120]
[399270862,1766224612597,-515.709815,0.00054794,120]
[399270863,1766224612633,-500.0,0.00054794,120]
[399270864,1766224612667,-500.0,0.00054794,120]
[399270865,1766224612700,-500.0,0.00054794,120]
[399270866,1766224612734,-500.0,0.00054794,120]
[399270867,1766224612767,-567.97,0.00054794,120]
[399270868,1766224612801,-500.0,0.00054794,120]
[399270869,1766224612844,-500.0,0.00054794,120]
[399270870,1766224612883,-1077.43,0.00054794,120]
[399270871,1766224612941,-997.18,0.00054794,120]
[399270872,1766224612982,-500.0,0.00054794,120]
[399270873,1766224613021,-500.0,0.00054794,120]
[399270874,1766224613059,-500.0,0.00054794,120]
[399270875,1766224613097,-1219.1,0.00054794,120]
[399270876,1766224613133,-500.0,0.00054794,120]
[399270877,1766224613168,-500.0,0.00054794,120]
[399270878,1766224613210,-1115.77,0.00054794,120]
[399270879,1766224613249,-500.0,0.00054794,120]
[399270880,1766224613286,-924.93,0.00054794,120]
[399270881,1766224613321,-574.86,0.00054794,90]
[399270882,1766224613356,-500.0,0.00054794,120]
[399270883,1766224613391,-1256.41,0.00054794,120]
[399270884,1766224613425,-598.97,0.00054794,120]
[399270885,1766224613459,-500.0,0.00054794,120]
[399270886,1766224613492,-1330.22,0.00054794,120]
[399270887,1766224613527,-500.0,0.00054794,120]
[399270888,1766224613569,-500.0,0.00054794,120]